[Event "Titled Tuesday Blitz September 27 Late 2022"]
[White "Tristan, Leonardo"]
[Black "Sernecki, Franciszek"]
[WhiteFideId "113816"]
[BlackFideId "1169297"]
[WhiteElo "2404"]
[BlackElo "2168"]
[Result "1/2-1/2"]
[Round "10"]
[TimeControl "180+1"]
[Date "2022.09.28"]
[WhiteClock "0:00:02"]
[BlackClock "0:00:05"]

1. d4 {[%clk 0:02:01]}  d5 {[%clk 0:02:58]} 2. Nf3 {[%clk 0:02:01]}  Bg4 {[%clk 0:02:57]} 3. Bf4 {[%clk 0:01:58]}  Bxf3 {[%clk 0:02:56]} 4. exf3 {[%clk 0:01:59]}  Nf6 {[%clk 0:02:57]} 5. Bd3 {[%clk 0:01:57]}  c5 {[%clk 0:02:57]} 6. O-O {[%clk 0:01:57]}  cxd4 {[%clk 0:02:55]} 7. Re1 {[%clk 0:01:57]}  Nc6 {[%clk 0:02:54]} 8. Nd2 {[%clk 0:01:57]}  e6 {[%clk 0:02:54]} 9. Nb3 {[%clk 0:01:58]}  Bd6 {[%clk 0:02:54]} 10. Qd2 {[%clk 0:01:58]}  O-O {[%clk 0:02:52]} 11. Bg5 {[%clk 0:01:58]}  h6 {[%clk 0:02:51]} 12. Bh4 {[%clk 0:01:58]}  Re8 {[%clk 0:02:39]} 13. Bb5 {[%clk 0:01:58]}  e5 {[%clk 0:02:36]} 14. f4 {[%clk 0:01:58]}  Bb4 {[%clk 0:02:34]} 15. c3 {[%clk 0:01:58]}  dxc3 {[%clk 0:02:34]} 16. bxc3 {[%clk 0:01:58]}  Bd6 {[%clk 0:02:34]} 17. Bxf6 {[%clk 0:01:56]}  Qxf6 {[%clk 0:02:34]} 18. Qxd5 {[%clk 0:01:56]}  exf4 {[%clk 0:02:33]} 19. Rxe8+ {[%clk 0:01:49]}  Rxe8 {[%clk 0:02:32]} 20. Bxc6 {[%clk 0:01:50]}  bxc6 {[%clk 0:02:32]} 21. Qxc6 {[%clk 0:01:50]}  Re7 {[%clk 0:02:30]} 22. Rd1 {[%clk 0:01:46]}  Be5 {[%clk 0:02:24]} 23. Qa8+ {[%clk 0:01:44]}  Kh7 {[%clk 0:02:24]} 24. c4 {[%clk 0:01:44]}  Qe6 {[%clk 0:02:19]} 25. c5 {[%clk 0:01:36]}  Rd7 {[%clk 0:02:18]} 26. Qe4+ {[%clk 0:01:34]}  f5 {[%clk 0:02:17]} 27. Qb1 {[%clk 0:01:35]}  Rxd1+ {[%clk 0:02:12]} 28. Qxd1 {[%clk 0:01:34]}  Kg6 {[%clk 0:02:12]} 29. Qc2 {[%clk 0:01:34]}  Kf6 {[%clk 0:02:11]} 30. h4 {[%clk 0:01:31]}  f3 {[%clk 0:02:06]} 31. gxf3 {[%clk 0:01:30]}  Qc6 {[%clk 0:02:06]} 32. Kg2 {[%clk 0:01:30]}  g5 {[%clk 0:02:06]} 33. hxg5+ {[%clk 0:01:30]}  hxg5 {[%clk 0:02:07]} 34. Qd3 {[%clk 0:00:48]}  g4 {[%clk 0:02:04]} 35. Qe3 {[%clk 0:00:49]}  gxf3+ {[%clk 0:01:48]} 36. Qxf3 {[%clk 0:00:49]}  Qa4 {[%clk 0:01:46]} 37. c6 {[%clk 0:00:41]}  Qxa2 {[%clk 0:01:46]} 38. Qd5 {[%clk 0:00:41]}  Qc2 {[%clk 0:01:38]} 39. Nc5 {[%clk 0:00:41]}  Bf4 {[%clk 0:01:24]} 40. Qd8+ {[%clk 0:00:28]}  Kg6 {[%clk 0:01:23]} 41. c7 {[%clk 0:00:20]}  Bxc7 {[%clk 0:01:02]} 42. Qxc7 {[%clk 0:00:21]}  Qa2 {[%clk 0:00:59]} 43. Qd6+ {[%clk 0:00:18]}  Kh5 {[%clk 0:00:57]} 44. Ne6 {[%clk 0:00:14]}  a5 {[%clk 0:00:53]} 45. Nf4+ {[%clk 0:00:12]}  Kg4 {[%clk 0:00:51]} 46. Qd4 {[%clk 0:00:11]}  Kg5 {[%clk 0:00:49]} 47. Qe3 {[%clk 0:00:09]}  Kf6 {[%clk 0:00:48]} 48. Nd3 {[%clk 0:00:09]}  Qd5+ {[%clk 0:00:47]} 49. f3 {[%clk 0:00:09]}  a4 {[%clk 0:00:42]} 50. Qh6+ {[%clk 0:00:09]}  Kf7 {[%clk 0:00:41]} 51. Qh7+ {[%clk 0:00:08]}  Kf6 {[%clk 0:00:42]} 52. Qh4+ {[%clk 0:00:09]}  Kf7 {[%clk 0:00:40]} 53. Nf2 {[%clk 0:00:06]}  a3 {[%clk 0:00:37]} 54. Qh7+ {[%clk 0:00:06]}  Kf6 {[%clk 0:00:37]} 55. Qh8+ {[%clk 0:00:07]}  Kf7 {[%clk 0:00:36]} 56. Qh5+ {[%clk 0:00:07]}  Kg7 {[%clk 0:00:32]} 57. Qg5+ {[%clk 0:00:07]}  Kf7 {[%clk 0:00:32]} 58. Qe3 {[%clk 0:00:04]}  a2 {[%clk 0:00:30]} 59. Qa7+ {[%clk 0:00:05]}  Kg6 {[%clk 0:00:28]} 60. Qa6+ {[%clk 0:00:05]}  Kg5 {[%clk 0:00:27]} 61. Nd3 {[%clk 0:00:05]}  Qxd3 {[%clk 0:00:19]} 62. Qxa2 {[%clk 0:00:06]}  Kf4 {[%clk 0:00:18]} 63. Qa4+ {[%clk 0:00:05]}  Ke3 {[%clk 0:00:18]} 64. Qa7+ {[%clk 0:00:05]}  Qd4 {[%clk 0:00:16]} 65. Qe7+ {[%clk 0:00:04]}  Kf4 {[%clk 0:00:14]} 66. Qh4+ {[%clk 0:00:04]}  Ke3 {[%clk 0:00:14]} 67. Qe1+ {[%clk 0:00:03]}  Kf4 {[%clk 0:00:12]} 68. Qh4+ {[%clk 0:00:03]}  Ke3 {[%clk 0:00:13]} 69. Qh6+ {[%clk 0:00:04]}  Ke2 {[%clk 0:00:10]} 70. Qe6+ {[%clk 0:00:04]}  Qe3 {[%clk 0:00:07]} 71. Qxe3+ {[%clk 0:00:03]}  Kxe3 {[%clk 0:00:07]} 72. Kg3 {[%clk 0:00:04]}  Ke2 {[%clk 0:00:04]} 73. Kf4 {[%clk 0:00:02]}  Kf2 {[%clk 0:00:04]} 74. Kg5 {[%clk 0:00:01]}  Kxf3 {[%clk 0:00:05]} 75. Kxf5 {[%clk 0:00:02]} 1/2-1/2


[Site "https://www.chess.com"]

[Event "Titled Tuesday Blitz September 27 Late 2022"]
[White "Vasquez Schroeder, Rodrigo"]
[Black "Bluebaum, Matthias"]
[WhiteFideId "3400042"]
[BlackFideId "24651516"]
[WhiteElo "2577"]
[BlackElo "2633"]
[Result "1-0"]
[Round "10"]
[TimeControl "180+1"]
[Date "2022.09.27"]
[WhiteClock "0:00:51"]
[BlackClock "0:00:39"]

1. d4 {[%clk 0:03:00]}  Nf6 {[%clk 0:02:58]} 2. Nf3 {[%clk 0:03:00]}  d5 {[%clk 0:02:58]} 3. c4 {[%clk 0:02:59]}  e6 {[%clk 0:02:59]} 4. Nc3 {[%clk 0:02:58]}  Bb4 {[%clk 0:02:59]} 5. Qa4+ {[%clk 0:02:56]}  Nc6 {[%clk 0:02:59]} 6. e3 {[%clk 0:02:55]}  O-O {[%clk 0:03:00]} 7. Qc2 {[%clk 0:02:54]}  Ne7 {[%clk 0:02:57]} 8. a3 {[%clk 0:02:48]}  Bxc3+ {[%clk 0:02:56]} 9. Qxc3 {[%clk 0:02:49]}  b6 {[%clk 0:02:53]} 10. b3 {[%clk 0:02:46]}  a5 {[%clk 0:02:52]} 11. a4 {[%clk 0:02:44]}  Bb7 {[%clk 0:02:51]} 12. Ba3 {[%clk 0:02:41]}  Rc8 {[%clk 0:02:46]} 13. c5 {[%clk 0:02:37]}  Ne4 {[%clk 0:02:43]} 14. Qc2 {[%clk 0:02:37]}  Nc6 {[%clk 0:02:37]} 15. Bd3 {[%clk 0:02:34]}  Nb4 {[%clk 0:02:32]} 16. Bxb4 {[%clk 0:02:33]}  axb4 {[%clk 0:02:33]} 17. c6 {[%clk 0:02:33]}  Ba8 {[%clk 0:02:26]} 18. Bxe4 {[%clk 0:02:16]}  dxe4 {[%clk 0:02:27]} 19. Qxe4 {[%clk 0:02:16]}  Qd5 {[%clk 0:02:15]} 20. Qxd5 {[%clk 0:02:13]}  exd5 {[%clk 0:02:16]} 21. Rc1 {[%clk 0:02:08]}  Rfe8 {[%clk 0:02:13]} 22. Ne5 {[%clk 0:02:06]}  Re6 {[%clk 0:02:08]} 23. Kd2 {[%clk 0:02:05]}  f6 {[%clk 0:02:06]} 24. Nd3 {[%clk 0:02:05]}  Bxc6 {[%clk 0:02:06]} 25. Nxb4 {[%clk 0:02:03]}  Bb7 {[%clk 0:02:06]} 26. Nd3 {[%clk 0:02:02]}  g5 {[%clk 0:01:56]} 27. h4 {[%clk 0:02:01]}  h6 {[%clk 0:01:56]} 28. hxg5 {[%clk 0:02:01]}  hxg5 {[%clk 0:01:56]} 29. Rh6 {[%clk 0:01:55]}  Kf7 {[%clk 0:01:48]} 30. Rxc7+ {[%clk 0:01:48]}  Rxc7 {[%clk 0:01:46]} 31. Rh7+ {[%clk 0:01:48]}  Ke8 {[%clk 0:01:24]} 32. Rxc7 {[%clk 0:01:48]}  Ba6 {[%clk 0:01:25]} 33. Nb4 {[%clk 0:01:40]}  Bf1 {[%clk 0:01:22]} 34. g3 {[%clk 0:01:37]}  Rd6 {[%clk 0:01:21]} 35. Rc6 {[%clk 0:01:35]}  Kd7 {[%clk 0:01:20]} 36. Rxd6+ {[%clk 0:01:33]}  Kxd6 {[%clk 0:01:20]} 37. f3 {[%clk 0:01:26]}  Bh3 {[%clk 0:01:06]} 38. g4 {[%clk 0:01:17]}  f5 {[%clk 0:01:05]} 39. gxf5 {[%clk 0:01:16]}  Bxf5 {[%clk 0:01:05]} 40. Nd3 {[%clk 0:01:14]}  Kc6 {[%clk 0:01:03]} 41. Ne5+ {[%clk 0:01:13]}  Kc7 {[%clk 0:01:00]} 42. Kc3 {[%clk 0:01:10]}  Kb7 {[%clk 0:00:57]} 43. Kb4 {[%clk 0:01:09]}  Ka6 {[%clk 0:00:57]} 44. Kc3 {[%clk 0:01:04]}  Kb7 {[%clk 0:00:57]} 45. Nf7 {[%clk 0:00:56]}  g4 {[%clk 0:00:33]} 46. Nd6+ {[%clk 0:00:52]}  Ka6 {[%clk 0:00:34]} 47. Nxf5 {[%clk 0:00:52]}  gxf3 {[%clk 0:00:35]} 48. Ng3 {[%clk 0:00:52]}  f2 {[%clk 0:00:34]} 49. Nf1 {[%clk 0:00:49]}  Ka5 {[%clk 0:00:34]} 50. Nd2 {[%clk 0:00:50]}  b5 {[%clk 0:00:33]} 51. axb5 {[%clk 0:00:48]}  Kxb5 {[%clk 0:00:34]} 52. Kd3 {[%clk 0:00:49]}  Kb4 {[%clk 0:00:34]} 53. Ke2 {[%clk 0:00:49]}  Kc3 {[%clk 0:00:35]} 54. Kxf2 {[%clk 0:00:49]}  Kxd2 {[%clk 0:00:36]} 55. b4 {[%clk 0:00:50]}  Kd3 {[%clk 0:00:36]} 56. b5 {[%clk 0:00:50]}  Kd2 {[%clk 0:00:37]} 57. b6 {[%clk 0:00:50]}  Kd3 {[%clk 0:00:38]} 58. b7 {[%clk 0:00:51]}  Kd2 {[%clk 0:00:39]} 59. b8=Q {[%clk 0:00:51]} 1-0


[Site "https://www.chess.com"]

[Event "Titled Tuesday Blitz September 27 Late 2022"]
[White "Wagner, Dennis"]
[Black "Thomforde-Toates, Noah"]
[WhiteFideId "24650684"]
[BlackFideId "30951992"]
[WhiteElo "2355"]
[BlackElo "2601"]
[Result "1-0"]
[Round "10"]
[TimeControl "180+1"]
[Date "2022.09.27"]
[WhiteClock "0:00:06"]
[BlackClock "0:00:02"]

1. e4 {[%clk 0:03:00]}  c5 {[%clk 0:02:57]} 2. Nf3 {[%clk 0:03:00]}  g6 {[%clk 0:02:57]} 3. c3 {[%clk 0:02:59]}  Bg7 {[%clk 0:02:57]} 4. d4 {[%clk 0:02:59]}  cxd4 {[%clk 0:02:58]} 5. cxd4 {[%clk 0:03:00]}  Nf6 {[%clk 0:02:58]} 6. Bd3 {[%clk 0:02:53]}  d5 {[%clk 0:02:57]} 7. e5 {[%clk 0:02:52]}  Ne4 {[%clk 0:02:57]} 8. Nbd2 {[%clk 0:02:51]}  Bf5 {[%clk 0:02:54]} 9. Qe2 {[%clk 0:02:38]}  Nxd2 {[%clk 0:02:52]} 10. Bxd2 {[%clk 0:02:38]}  Bxd3 {[%clk 0:02:52]} 11. Qxd3 {[%clk 0:02:39]}  Nc6 {[%clk 0:02:52]} 12. O-O {[%clk 0:02:38]}  e6 {[%clk 0:02:51]} 13. a4 {[%clk 0:02:13]}  O-O {[%clk 0:02:50]} 14. a5 {[%clk 0:02:13]}  a6 {[%clk 0:02:49]} 15. Bg5 {[%clk 0:02:09]}  Qd7 {[%clk 0:02:47]} 16. Qd2 {[%clk 0:02:07]}  Rac8 {[%clk 0:02:46]} 17. h4 {[%clk 0:02:06]}  h5 {[%clk 0:02:46]} 18. Bf6 {[%clk 0:01:59]}  Ne7 {[%clk 0:02:40]} 19. Bxe7 {[%clk 0:01:22]}  Qxe7 {[%clk 0:02:41]} 20. Rfc1 {[%clk 0:01:22]}  Rfd8 {[%clk 0:02:37]} 21. g3 {[%clk 0:01:21]}  Bf8 {[%clk 0:02:36]} 22. Rxc8 {[%clk 0:00:59]}  Rxc8 {[%clk 0:02:35]} 23. Rc1 {[%clk 0:01:00]}  Rxc1+ {[%clk 0:02:31]} 24. Qxc1 {[%clk 0:01:01]}  Qd8 {[%clk 0:02:30]} 25. Qc3 {[%clk 0:00:58]}  Qd7 {[%clk 0:02:26]} 26. Ne1 {[%clk 0:00:51]}  Qb5 {[%clk 0:02:23]} 27. Nd3 {[%clk 0:00:48]}  Qc4 {[%clk 0:02:10]} 28. Qxc4 {[%clk 0:00:22]}  dxc4 {[%clk 0:02:09]} 29. Nc5 {[%clk 0:00:23]}  Bxc5 {[%clk 0:01:25]} 30. dxc5 {[%clk 0:00:24]}  Kf8 {[%clk 0:01:25]} 31. Kg2 {[%clk 0:00:24]}  Ke8 {[%clk 0:01:23]} 32. Kf3 {[%clk 0:00:25]}  Kd7 {[%clk 0:01:23]} 33. g4 {[%clk 0:00:15]}  hxg4+ {[%clk 0:00:30]} 34. Kxg4 {[%clk 0:00:16]}  Kc6 {[%clk 0:00:25]} 35. Kg5 {[%clk 0:00:16]}  Kxc5 {[%clk 0:00:20]} 36. Kf6 {[%clk 0:00:16]}  Kb4 {[%clk 0:00:19]} 37. Kxf7 {[%clk 0:00:16]}  Kb3 {[%clk 0:00:20]} 38. Kxg6 {[%clk 0:00:14]}  Kxb2 {[%clk 0:00:20]} 39. h5 {[%clk 0:00:15]}  c3 {[%clk 0:00:21]} 40. h6 {[%clk 0:00:15]}  c2 {[%clk 0:00:21]} 41. h7 {[%clk 0:00:16]}  c1=Q {[%clk 0:00:22]} 42. h8=Q {[%clk 0:00:17]}  Qf4 {[%clk 0:00:19]} 43. Qf6 {[%clk 0:00:13]}  Qg4+ {[%clk 0:00:19]} 44. Kf7 {[%clk 0:00:13]}  Qa4 {[%clk 0:00:14]} 45. Kxe6 {[%clk 0:00:07]}  Qxa5 {[%clk 0:00:12]} 46. Kf5 {[%clk 0:00:06]}  Qd2 {[%clk 0:00:10]} 47. e6+ {[%clk 0:00:07]}  Kb1 {[%clk 0:00:11]} 48. f4 {[%clk 0:00:07]}  a5 {[%clk 0:00:10]} 49. e7 {[%clk 0:00:07]}  Qd7+ {[%clk 0:00:09]} 50. Qe6 {[%clk 0:00:07]}  Qe8 {[%clk 0:00:09]} 51. Ke5 {[%clk 0:00:03]}  a4 {[%clk 0:00:09]} 52. f5 {[%clk 0:00:03]}  a3 {[%clk 0:00:09]} 53. Qb3+ {[%clk 0:00:04]}  Kc1 {[%clk 0:00:09]} 54. Qxa3+ {[%clk 0:00:04]}  Kd1 {[%clk 0:00:09]} 55. Qd3+ {[%clk 0:00:04]}  Ke1 {[%clk 0:00:09]} 56. Qe4+ {[%clk 0:00:05]}  Kf1 {[%clk 0:00:09]} 57. Kf4 {[%clk 0:00:05]}  Kf2 {[%clk 0:00:06]} 58. f6 {[%clk 0:00:05]}  Qb8+ {[%clk 0:00:06]} 59. Qe5 {[%clk 0:00:05]}  Qe8 {[%clk 0:00:05]} 60. Qe3+ {[%clk 0:00:05]}  Kg2 {[%clk 0:00:05]} 61. Qf3+ {[%clk 0:00:05]}  Kg1 {[%clk 0:00:05]} 62. Qg4+ {[%clk 0:00:05]}  Kh2 {[%clk 0:00:05]} 63. Qe6 {[%clk 0:00:05]}  Qa4+ {[%clk 0:00:05]} 64. Kf5 {[%clk 0:00:05]}  Qb5+ {[%clk 0:00:04]} 65. Qe5+ {[%clk 0:00:05]}  Qxe5+ {[%clk 0:00:02]} 66. Kxe5 {[%clk 0:00:06]} 1-0


[Site "https://www.chess.com"]

[Event "Titled Tuesday Blitz September 27 Late 2022"]
[White "Wieczorek, Oskar"]
[Black "Martinez Alcantara, Jose Eduardo"]
[WhiteFideId "1133950"]
[BlackFideId "3805662"]
[WhiteElo "2302"]
[BlackElo "2703"]
[Result "0-1"]
[Round "10"]
[TimeControl "180+1"]
[Date "2022.09.27"]
[WhiteClock "0:00:02"]
[BlackClock "0:01:05"]

1. e4 {[%clk 0:03:00]}  Nc6 {[%clk 0:02:58]} 2. Nf3 {[%clk 0:03:01]}  d6 {[%clk 0:02:58]} 3. d4 {[%clk 0:03:00]}  Nf6 {[%clk 0:02:59]} 4. Nc3 {[%clk 0:02:59]}  g6 {[%clk 0:02:59]} 5. Be2 {[%clk 0:02:59]}  Bg7 {[%clk 0:03:00]} 6. O-O {[%clk 0:02:59]}  O-O {[%clk 0:03:01]} 7. d5 {[%clk 0:03:00]}  Nb8 {[%clk 0:03:01]} 8. Re1 {[%clk 0:03:00]}  a6 {[%clk 0:03:01]} 9. a4 {[%clk 0:03:00]}  e5 {[%clk 0:03:02]} 10. Bg5 {[%clk 0:02:44]}  h6 {[%clk 0:03:02]} 11. Bh4 {[%clk 0:02:45]}  Qe8 {[%clk 0:03:00]} 12. Nd2 {[%clk 0:02:43]}  Nbd7 {[%clk 0:02:51]} 13. b4 {[%clk 0:02:40]}  Nh7 {[%clk 0:02:46]} 14. a5 {[%clk 0:02:35]}  Bf6 {[%clk 0:02:45]} 15. Bg3 {[%clk 0:02:35]}  h5 {[%clk 0:02:40]} 16. h3 {[%clk 0:02:27]}  Bg5 {[%clk 0:02:40]} 17. Nc4 {[%clk 0:02:25]}  Qe7 {[%clk 0:02:32]} 18. b5 {[%clk 0:02:17]}  Bf4 {[%clk 0:02:26]} 19. Bxf4 {[%clk 0:02:04]}  exf4 {[%clk 0:02:27]} 20. Qd2 {[%clk 0:01:56]}  Qf6 {[%clk 0:02:24]} 21. e5 {[%clk 0:01:08]}  dxe5 {[%clk 0:02:25]} 22. b6 {[%clk 0:00:37]}  cxb6 {[%clk 0:02:23]} 23. Ne4 {[%clk 0:00:37]}  Qd8 {[%clk 0:02:23]} 24. axb6 {[%clk 0:00:35]}  Nhf6 {[%clk 0:02:23]} 25. Nxf6+ {[%clk 0:00:25]}  Qxf6 {[%clk 0:02:24]} 26. d6 {[%clk 0:00:24]}  e4 {[%clk 0:02:17]} 27. Bf1 {[%clk 0:00:20]}  Re8 {[%clk 0:02:17]} 28. Qd5 {[%clk 0:00:19]}  Re6 {[%clk 0:02:17]} 29. Rad1 {[%clk 0:00:18]}  a5 {[%clk 0:02:13]} 30. Rxe4 {[%clk 0:00:17]}  a4 {[%clk 0:02:12]} 31. Rde1 {[%clk 0:00:17]}  Nf8 {[%clk 0:02:11]} 32. Qc5 {[%clk 0:00:13]}  Bd7 {[%clk 0:02:07]} 33. Qc7 {[%clk 0:00:12]}  Rxe4 {[%clk 0:02:01]} 34. Rxe4 {[%clk 0:00:12]}  a3 {[%clk 0:02:02]} 35. Nxa3 {[%clk 0:00:10]}  Rxa3 {[%clk 0:01:57]} 36. Re7 {[%clk 0:00:09]}  Ra1 {[%clk 0:01:47]} 37. Rxd7 {[%clk 0:00:08]}  Nxd7 {[%clk 0:01:33]} 38. Qxd7 {[%clk 0:00:08]}  Qe6 {[%clk 0:01:29]} 39. Qxb7 {[%clk 0:00:04]}  Qxd6 {[%clk 0:01:23]} 40. Qc8+ {[%clk 0:00:04]}  Kg7 {[%clk 0:01:23]} 41. b7 {[%clk 0:00:04]}  Rb1 {[%clk 0:01:16]} 42. Qc3+ {[%clk 0:00:04]}  Qf6 {[%clk 0:01:12]} 43. Qf3 {[%clk 0:00:03]}  Qa1 {[%clk 0:01:09]} 44. Qe2 {[%clk 0:00:02]}  Rxb7 {[%clk 0:01:06]} 45. c4 {[%clk 0:00:02]}  Rb1 {[%clk 0:01:05]} 46. c5 {[%clk 0:00:02]}  Rc1 {[%clk 0:01:06]} 47. Qb5 {[%clk 0:00:02]}  Qc3 {[%clk 0:01:05]} 0-1


[Site "https://www.chess.com"]

[Event "Titled Tuesday Blitz September 27 Late 2022"]
[White "Averjanov, Alexey"]
[Black "Tari, Aryan"]
[WhiteFideId "14109867"]
[BlackFideId "1510045"]
[WhiteElo "2692"]
[BlackElo "2612"]
[Result "0-1"]
[Round "11"]
[TimeControl "180+1"]
[Date "2022.09.27"]
[WhiteClock "0:00:52"]
[BlackClock "0:00:18"]

1. d4 {[%clk 0:03:00]}  d5 {[%clk 0:02:59]} 2. c4 {[%clk 0:03:01]}  e6 {[%clk 0:03:00]} 3. Nf3 {[%clk 0:03:01]}  Nf6 {[%clk 0:03:00]} 4. e3 {[%clk 0:03:01]}  Be7 {[%clk 0:02:54]} 5. Nbd2 {[%clk 0:03:01]}  O-O {[%clk 0:02:52]} 6. Bd3 {[%clk 0:03:02]}  dxc4 {[%clk 0:02:51]} 7. Nxc4 {[%clk 0:03:01]}  b5 {[%clk 0:02:43]} 8. Nce5 {[%clk 0:02:59]}  a6 {[%clk 0:02:41]} 9. O-O {[%clk 0:02:59]}  Bb7 {[%clk 0:02:41]} 10. a4 {[%clk 0:02:59]}  b4 {[%clk 0:02:40]} 11. b3 {[%clk 0:02:59]}  c5 {[%clk 0:02:31]} 12. Bb2 {[%clk 0:02:57]}  cxd4 {[%clk 0:02:22]} 13. Bxd4 {[%clk 0:02:54]}  Nc6 {[%clk 0:02:04]} 14. Nxc6 {[%clk 0:02:48]}  Bxc6 {[%clk 0:02:05]} 15. Ne5 {[%clk 0:02:40]}  Bb7 {[%clk 0:01:46]} 16. Be2 {[%clk 0:02:40]}  Nd5 {[%clk 0:01:41]} 17. Rc1 {[%clk 0:02:37]}  Bf6 {[%clk 0:01:23]} 18. Bf3 {[%clk 0:02:31]}  Nc3 {[%clk 0:01:10]} 19. Bxc3 {[%clk 0:02:26]}  Bxf3 {[%clk 0:01:11]} 20. Nxf3 {[%clk 0:02:09]}  bxc3 {[%clk 0:01:05]} 21. Nd4 {[%clk 0:02:09]}  Rc8 {[%clk 0:01:02]} 22. Qe2 {[%clk 0:01:56]}  Qb6 {[%clk 0:00:56]} 23. Rfd1 {[%clk 0:01:54]}  Rfd8 {[%clk 0:00:52]} 24. h3 {[%clk 0:01:49]}  g6 {[%clk 0:00:41]} 25. b4 {[%clk 0:01:43]}  Bxd4 {[%clk 0:00:31]} 26. exd4 {[%clk 0:01:40]}  Qxb4 {[%clk 0:00:31]} 27. Qxa6 {[%clk 0:01:38]}  c2 {[%clk 0:00:31]} 28. Rf1 {[%clk 0:01:29]}  Qxd4 {[%clk 0:00:30]} 29. Qe2 {[%clk 0:01:25]}  Qxa4 {[%clk 0:00:30]} 30. Rfe1 {[%clk 0:01:20]}  Qc4 {[%clk 0:00:29]} 31. Qe5 {[%clk 0:01:18]}  Rd2 {[%clk 0:00:26]} 32. Kh2 {[%clk 0:01:15]}  Rxf2 {[%clk 0:00:24]} 33. Re4 {[%clk 0:01:13]}  Qd5 {[%clk 0:00:22]} 34. Qg3 {[%clk 0:01:07]}  Qxe4 {[%clk 0:00:22]} 35. Qxf2 {[%clk 0:01:07]}  h5 {[%clk 0:00:22]} 36. Qf6 {[%clk 0:01:04]}  Qf5 {[%clk 0:00:19]} 37. Qd4 {[%clk 0:01:03]}  e5 {[%clk 0:00:19]} 38. Qb2 {[%clk 0:01:00]}  Qf4+ {[%clk 0:00:19]} 39. Kh1 {[%clk 0:01:01]}  Qd2 {[%clk 0:00:18]} 40. Kh2 {[%clk 0:00:57]}  e4 {[%clk 0:00:18]} 41. Qb7 {[%clk 0:00:52]}  Qf4+ {[%clk 0:00:18]} 42. g3 {[%clk 0:00:52]}  Qd2+ {[%clk 0:00:18]} 0-1


[Site "https://www.chess.com"]

[Event "Titled Tuesday Blitz September 27 Late 2022"]
[White "Banzea, Alexandru-Bogdan"]
[Black "Machidon, Cristi"]
[WhiteFideId "1232622"]
[BlackFideId "13904590"]
[WhiteElo "2057"]
[BlackElo "2312"]
[Result "1-0"]
[Round "11"]
[TimeControl "180+1"]
[Date "2022.09.28"]
[WhiteClock "0:00:21"]
[BlackClock "0:00:02"]

1. d4 {[%clk 0:03:00]}  d5 {[%clk 0:02:59]} 2. Nf3 {[%clk 0:03:01]}  c6 {[%clk 0:03:00]} 3. Bf4 {[%clk 0:03:01]}  Nf6 {[%clk 0:02:59]} 4. e3 {[%clk 0:03:02]}  Bf5 {[%clk 0:02:59]} 5. c4 {[%clk 0:03:02]}  e6 {[%clk 0:02:58]} 6. Qb3 {[%clk 0:03:03]}  Qc8 {[%clk 0:02:47]} 7. Nc3 {[%clk 0:03:02]}  Nbd7 {[%clk 0:02:47]} 8. Rc1 {[%clk 0:03:03]}  Be7 {[%clk 0:02:45]} 9. cxd5 {[%clk 0:03:02]}  exd5 {[%clk 0:02:46]} 10. Nb5 {[%clk 0:03:01]}  O-O {[%clk 0:02:45]} 11. Bd6 {[%clk 0:02:55]}  Qd8 {[%clk 0:02:37]} 12. Qa3 {[%clk 0:02:55]}  Re8 {[%clk 0:02:32]} 13. Bxe7 {[%clk 0:02:54]}  Qxe7 {[%clk 0:02:33]} 14. Qxe7 {[%clk 0:02:43]}  Rxe7 {[%clk 0:02:34]} 15. Nd6 {[%clk 0:02:43]}  Be4 {[%clk 0:01:58]} 16. Nxb7 {[%clk 0:02:43]}  Rb8 {[%clk 0:01:57]} 17. Na5 {[%clk 0:02:43]}  Rxb2 {[%clk 0:01:56]} 18. Nxc6 {[%clk 0:02:40]}  Re8 {[%clk 0:01:56]} 19. Nxa7 {[%clk 0:02:17]}  Rxa2 {[%clk 0:01:42]} 20. Nb5 {[%clk 0:02:13]}  Ng4 {[%clk 0:01:24]} 21. Be2 {[%clk 0:02:05]}  Bxf3 {[%clk 0:01:21]} 22. Bxf3 {[%clk 0:01:17]}  Nxf2 {[%clk 0:01:20]} 23. O-O {[%clk 0:01:17]}  Ne4 {[%clk 0:01:10]} 24. Nc7 {[%clk 0:01:09]}  Rb8 {[%clk 0:00:58]} 25. Nxd5 {[%clk 0:01:07]}  Ndf6 {[%clk 0:00:29]} 26. Nxf6+ {[%clk 0:00:58]}  Nxf6 {[%clk 0:00:30]} 27. Rb1 {[%clk 0:00:51]}  Rxb1 {[%clk 0:00:19]} 28. Rxb1 {[%clk 0:00:52]}  g6 {[%clk 0:00:19]} 29. e4 {[%clk 0:00:42]}  Rd2 {[%clk 0:00:17]} 30. Rb4 {[%clk 0:00:37]}  Kg7 {[%clk 0:00:16]} 31. Kf1 {[%clk 0:00:37]}  h5 {[%clk 0:00:12]} 32. Ke1 {[%clk 0:00:34]}  Ra2 {[%clk 0:00:12]} 33. e5 {[%clk 0:00:31]}  Nh7 {[%clk 0:00:08]} 34. Rb7 {[%clk 0:00:27]}  Ng5 {[%clk 0:00:05]} 35. Bd5 {[%clk 0:00:25]}  Ra4 {[%clk 0:00:05]} 36. e6 {[%clk 0:00:20]}  Rxd4 {[%clk 0:00:02]} 37. e7 {[%clk 0:00:21]} 1-0


[Site "https://www.chess.com"]

[Event "Titled Tuesday Blitz September 27 Late 2022"]
[White "Barria Zuniga, Daniel"]
[Black "Baskakov, Egor"]
[WhiteFideId "3400816"]
[BlackFideId "24197866"]
[WhiteElo "2414"]
[BlackElo "2211"]
[Result "0-1"]
[Round "11"]
[TimeControl "180+1"]
[Date "2022.09.28"]
[WhiteClock "0:00:02"]
[BlackClock "0:01:51"]

1. d4 {[%clk 0:03:00]}  Nf6 {[%clk 0:02:59]} 2. c4 {[%clk 0:02:59]}  e6 {[%clk 0:02:59]} 3. Nf3 {[%clk 0:02:59]}  d5 {[%clk 0:03:00]} 4. Nc3 {[%clk 0:02:58]}  Ne4 {[%clk 0:02:58]} 5. e3 {[%clk 0:02:55]}  f5 {[%clk 0:02:59]} 6. Qc2 {[%clk 0:02:51]}  c6 {[%clk 0:02:58]} 7. Bd3 {[%clk 0:02:51]}  Bd6 {[%clk 0:02:58]} 8. O-O {[%clk 0:02:51]}  O-O {[%clk 0:02:59]} 9. Rb1 {[%clk 0:02:43]}  Bd7 {[%clk 0:02:57]} 10. b4 {[%clk 0:02:43]}  Be8 {[%clk 0:02:57]} 11. b5 {[%clk 0:02:42]}  Nd7 {[%clk 0:02:57]} 12. bxc6 {[%clk 0:02:40]}  bxc6 {[%clk 0:02:58]} 13. Rb7 {[%clk 0:02:28]}  Qc8 {[%clk 0:02:53]} 14. Rb3 {[%clk 0:02:22]}  g5 {[%clk 0:02:44]} 15. Ba3 {[%clk 0:02:20]}  Qc7 {[%clk 0:02:38]} 16. Bxd6 {[%clk 0:02:13]}  Qxd6 {[%clk 0:02:39]} 17. Bxe4 {[%clk 0:02:08]}  fxe4 {[%clk 0:02:38]} 18. Nxg5 {[%clk 0:02:07]}  Qe7 {[%clk 0:02:35]} 19. Nh3 {[%clk 0:02:06]}  Nb6 {[%clk 0:02:32]} 20. c5 {[%clk 0:01:49]}  Nd7 {[%clk 0:02:30]} 21. Rb7 {[%clk 0:01:45]}  e5 {[%clk 0:02:28]} 22. Ne2 {[%clk 0:01:15]}  Qf6 {[%clk 0:02:10]} 23. Qc3 {[%clk 0:00:43]}  Rd8 {[%clk 0:01:57]} 24. Rxa7 {[%clk 0:00:41]}  Bh5 {[%clk 0:01:54]} 25. Ng3 {[%clk 0:00:39]}  Bg4 {[%clk 0:01:55]} 26. Rxd7 {[%clk 0:00:21]}  exd4 {[%clk 0:01:53]} 27. Qxd4 {[%clk 0:00:08]}  Qxd4 {[%clk 0:01:53]} 28. exd4 {[%clk 0:00:09]}  Rxd7 {[%clk 0:01:53]} 29. f3 {[%clk 0:00:02]}  Bxh3 {[%clk 0:01:51]} 30. gxh3 {[%clk 0:00:02]}  Rxf3 {[%clk 0:01:52]} 31. Rxf3 {[%clk 0:00:02]}  exf3 {[%clk 0:01:53]} 32. Kf2 {[%clk 0:00:02]}  Ra7 {[%clk 0:01:51]} 0-1


[Site "https://www.chess.com"]